Workbook

Sheet Cover
B1: UIC presentation model
B2: Author: | D2: PricewaterhouseCoopers Advisory, spol. s r.o.
B3: Version | D3: DRAFT - design 2
B5: This model is an underlying document for the unit investment cost presentation in the UNIC tool. The sheet 'Presentation' provides the resuts for the asset selected by the users. Please, select infrastructure and asset categories, subcategories and the year for which you seek cost projections in the first table. Inflation projections are based on the baseline scenario of the EIB. If you wish to adjust inflation forecast, please, choose customary in the cell F4 of the list 'Inflation' and insert your values to the row 9. Selection of a subcategory in the same table may be necessary in order to provide the UIC indicator. UIC indicators are presented in the second table.
B29: Structure of the document
B31: Cell to fill in
B32: Error
B33: Encoded results
B34: Cell may be modified

Sheet Presentation
B2: Presentation
B4: Select categories
B5: Infrastructure category | C5: Electricity
B6: Asset category | C6: Submarine cable
B7: =IF(OR(C6="Overhead line",C6="Underground cable",C6="AC substation",C6="Compression station",C6="Transformer",C6="Submarine cable"),"Subcategory","") -> Subcategory
B8: Year of construction for projection | C8: 2026
B10: Results
C11: UIC value (2023) | D11: UIC value (current) | E11: ="UIC projection" & " "& C8 -> UIC projection 2026 | F11: UIC unit
B12: Average | C12: =IFERROR(_xlfn.IFS(LEN(C7)>0,INDEX(UICs!E5:E39,MATCH(1,(C6=UICs!C5:C39)*(C7=UICs!D5:D39),0)),(LEN(C7)=0),INDEX(UICs!E5:E39,MATCH(1,(Presentation!C6=UICs!C5:C39)*(UICs!D5:D39=""),0))),"Missing selection") -> 1.647296567 | D12: =IFERROR(_xlfn.XLOOKUP((YEAR(TODAY())-1),Inflation!C$5:J$5,Inflation!C$6:J$6,1)*C12, "Missing selection") -> 1.647296567 | E12: =IFERROR(_xlfn.XLOOKUP(C8-1,Inflation!C$5:J$5,Inflation!C$6:J$6,1)*C12, "Missing selection") -> 1.806893617 | F12: =IFERROR(_xlfn.IFS(OR(C6=Key!B5,C6=Key!B6,C6=Key!B7,C6=Key!B8,C6=Key!D5),"million EUR/km",OR(C6=Key!B9,C6=Key!B10,C6=Key!B14,C6=Key!C6),"million EUR/asset",C6=Key!B12,"million EUR/kV",C6=Key!B13,"million EUR/MVA",C6=Key!C5,"million EUR/MW"),"Missing selection") -> million EUR/km
B13: Median | C13: =IFERROR(_xlfn.IFS(LEN(C7)>0,INDEX(UICs!F5:F39,MATCH(1,(C6=UICs!C5:C39)*(C7=UICs!D5:D39),0)),(LEN(C7)=0),INDEX(UICs!F5:F39,MATCH(1,(Presentation!C6=UICs!C5:C39)*(UICs!D5:D39=""),0))),"Missing selection") -> 1.26309057 | D13: =IFERROR(_xlfn.XLOOKUP((YEAR(TODAY())-1),Inflation!C$5:J$5,Inflation!C$6:J$6,1)*C13, "Missing selection") -> 1.26309057 | E13: =IFERROR(_xlfn.XLOOKUP(C8-1,Inflation!C$5:J$5,Inflation!C$6:J$6,1)*C13, "Missing selection") -> 1.38546412 | F13: =F12 -> million EUR/km
B14: 1st Q | C14: =IFERROR(_xlfn.IFS(LEN(C7)>0,INDEX(UICs!G5:G39,MATCH(1,(C6=UICs!C5:C39)*(C7=UICs!D5:D39),0)),(LEN(C7)=0),INDEX(UICs!G5:G39,MATCH(1,(Presentation!C6=UICs!C5:C39)*(UICs!D5:D39=""),0))),"Missing selection") -> 0.9121004215 | D14: =IFERROR(_xlfn.XLOOKUP((YEAR(TODAY())-1),Inflation!C$5:J$5,Inflation!C$6:J$6,1)*C14, "Missing selection") -> 0.9121004215 | E14: =IFERROR(_xlfn.XLOOKUP(C8-1,Inflation!C$5:J$5,Inflation!C$6:J$6,1)*C14, "Missing selection") -> 1.000468563 | F14: =F13 -> million EUR/km
B15: 3rd Q | C15: =IFERROR(_xlfn.IFS(LEN(C7)>0,INDEX(UICs!H5:H39,MATCH(1,(C6=UICs!C5:C39)*(C7=UICs!D5:D39),0)),(LEN(C7)=0),INDEX(UICs!H5:H39,MATCH(1,(Presentation!C6=UICs!C5:C39)*(UICs!D5:D39=""),0))),"Missing selection") -> 2.477986643 | D15: =IFERROR(_xlfn.XLOOKUP((YEAR(TODAY())-1),Inflation!C$5:J$5,Inflation!C$6:J$6,1)*C15, "Missing selection") -> 2.477986643 | E15: =IFERROR(_xlfn.XLOOKUP(C8-1,Inflation!C$5:J$5,Inflation!C$6:J$6,1)*C15, "Missing selection") -> 2.718064455 | F15: million EUR/km
B18: Chart

Sheet Inflation
B2: Inflation chart
C4: Inflation projections factor | F4: Baseline
C5: 2023 | D5: 2024 | E5: 2025 | F5: 2026 | G5: 2027 | H5: 2028 | I5: 2029 | J5: 2030
C6: =1+_xlfn.XLOOKUP($F4,$B7:$B9,C7:C9) -> 1.042 | D6: =C6*(1+_xlfn.XLOOKUP($F4,$B7:$B9,D7:D9)) -> 1.071176 | E6: =D6*(1+_xlfn.XLOOKUP($F4,$B7:$B9,E7:E9)) -> 1.096884224 | F6: 1.096884224 | G6: 1.096884224 | H6: 1.096884224 | I6: 1.096884224 | J6: 1.096884224
B7: Baseline | C7: 0.042 | D7: 0.028 | E7: 0.024
B8: Downside | C8: 0.043 | D8: 0.03 | E8: 0.024
B9: Customary | C9: 0.2 | D9: 0.16 | E9: 0.04 | F9: -0.02 | G9: -0.02
C10: Source: ECB; ECB Economic Bulletin, Issue 8/2022 (HICP excl. food/energy)
C11: Follow this link to update: https://www.ecb.europa.eu/pub/economic-bulletin/html/index.en.html
C13: Real inflation
C14: 2012 | D14: 2013 | E14: 2014 | F14: 2015 | G14: 2016 | H14: 2017 | I14: 2018 | J14: 2019 | K14: 2020 | L14: 2021 | M14: 2022
B15: BE | E15: 1.244980027 | F15: 1.238786097 | G15: 1.23139771 | H15: 1.20962447 | I15: 1.183585587 | J15: 1.156975158 | K15: 1.143256085 | L15: 1.13870128 | M15: 1.103392713
B16: BG | E16: 1.201852108 | F16: 1.221394419 | G16: 1.23497919 | H16: 1.25124538 | I16: 1.236408478 | J16: 1.205076489 | K16: 1.17568438 | L16: 1.161743458 | M16: 1.13010064
B17: CZ | E17: 1.329560955 | F17: 1.324263899 | G17: 1.32030299 | H17: 1.31242842 | I17: 1.281668379 | J17: 1.256537626 | K17: 1.224695542 | L17: 1.185571677 | M17: 1.147697654
B18: DK | C18: =1/0.989*F18 -> 1.151657705 | D18: 1.149263155 | E18: 1.143545428 | F18: 1.13898947 | G18: 1.136716038 | H18: 1.136716038 | I18: 1.124348208 | J18: 1.116532481 | K18: 1.108771083 | L18: 1.105454719 | M18: 1.084842707
B19: DE | E19: 1.206141604 | F19: 1.196569052 | G19: 1.188251293 | H19: 1.183517224 | I19: 1.16373375 | J19: 1.142035083 | K19: 1.126267341 | L19: 1.12178022 | M19: 1.086996337
B20: EE | E20: 1.380113469 | F20: 1.373247233 | G20: 1.371875358 | H20: 1.360987458 | I20: 1.312427636 | J20: 1.269272375 | K20: 1.240735459 | L20: 1.248224808 | M20: 1.194473501
B21: Ireland | E21: 1.123658519 | F21: 1.120297626 | G21: 1.120297626 | H21: 1.122542712 | I21: 1.119185156 | J21: 1.111405319 | K21: 1.101491892 | L21: 1.107027027 | M21: 1.081081081
B22: GR | E22: 1.083865798 | F22: 1.099255374 | G22: 1.111481672 | H22: 1.111481672 | I22: 1.0993884 | J22: 1.090663095 | K22: 1.08523691 | L22: 1.099530811 | M22: 1.092972973
B23: ES | E23: 1.150405042 | F23: 1.152710463 | G23: 1.159668473 | H23: 1.163157947 | I23: 1.140350929 | J23: 1.121289015 | K23: 1.112389896 | L23: 1.115737108 | M23: 1.08323991
B24: FR | C24: =1/0.983*$F24 -> 1.161745926 | D24: =1/0.9931*$F24 -> 1.149930768 | E24: 1.148848223 | F24: 1.141996245 | G24: 1.14085539 | H24: 1.137443061 | I24: 1.123955594 | J24: 1.100837996 | K24: 1.086710756 | L24: 1.081304235 | M24: 1.059063893
B25: Croatia | E25: 1.17087253 | F25: 1.168535459 | G25: 1.172051614 | H25: 1.179126372 | I25: 1.163994444 | J25: 1.145663823 | K25: 1.136571253 | L25: 1.136571253 | M25: 1.106690607
B26: IT | E26: 1.144120331 | F26: 1.141836657 | G26: 1.140695961 | H26: 1.141837799 | I26: 1.127184402 | J26: 1.113818579 | K26: 1.107175526 | L26: 1.10828381 | M26: 1.087619048
B27: Cyprus | E27: 1.082480939 | F27: 1.085738153 | G27: 1.102272237 | H27: 1.115660158 | I27: 1.107904825 | J27: 1.099111929 | K27: 1.093643711 | L27: 1.105807594 | M27: 1.08094584
B28: LV | E28: 1.326307833 | F28: 1.317088216 | G28: 1.314459297 | H28: 1.313146151 | I28: 1.276138145 | J28: 1.243799362 | K28: 1.21109967 | L28: 1.209889781 | M28: 1.172373818
B29: LT | E29: 1.367998231 | F29: 1.365267696 | G29: 1.374891939 | H29: 1.365334597 | I29: 1.31661967 | J29: 1.284506995 | K29: 1.256856159 | L29: 1.243181166 | M29: 1.188509719
B30: Luxembourg | E30: 1.193919101 | F30: 1.185619762 | G30: 1.184435327 | H30: 1.184435327 | I30: 1.160073778 | J30: 1.137327233 | K30: 1.119416568 | L30: 1.119416568 | M30: 1.081561901
B31: Hungary | E31: 1.372980711 | F31: 1.372980711 | G31: 1.371609102 | H31: 1.366144524 | I31: 1.334125511 | J31: 1.29652625 | K31: 1.253893859 | L31: 1.212663306 | M31: 1.152721774
B32: Malta | E32: 1.159498942 | F32: 1.150296569 | G32: 1.136656689 | H32: 1.126518026 | I32: 1.11206123 | J32: 1.093472203 | K32: 1.077312515 | L32: 1.068762416 | M32: 1.061333084
B33: NL | E33: 1.233770872 | F33: 1.23008063 | G33: 1.22762538 | H33: 1.226398981 | I33: 1.210660395 | J33: 1.191594877 | K33: 1.160267651 | L33: 1.147643572 | M33: 1.116384797
B34: AT | E34: 1.239193714 | F34: 1.220880506 | G34: 1.211190978 | H34: 1.199198988 | I34: 1.173384529 | J34: 1.149250273 | K34: 1.132266279 | L34: 1.116633411 | M34: 1.086219271
B35: PL | E35: 1.286164067 | F35: 1.284879188 | G35: 1.293936745 | H35: 1.296529804 | I35: 1.276112012 | J35: 1.260980249 | K35: 1.235044318 | L35: 1.190978128 | M35: 1.132108486
B36: PT | C36: =1/0.9922*F36 -> 1.145160391 | E36: 1.133955684 | F36: 1.13622814 | G36: 1.130575264 | H36: 1.12383227 | I36: 1.106134124 | J36: 1.093017909 | K36: 1.089748663 | L36: 1.090839503 | M36: 1.081109517
B37: Romania | E37: 1.302983347 | F37: 1.284993438 | G37: 1.290154055 | H37: 1.304503594 | I37: 1.290310182 | J37: 1.239491049 | K37: 1.192965399 | L37: 1.166144085 | M37: 1.120215259
B38: SI | E38: 1.163486088 | F38: 1.158850686 | G38: 1.168196256 | H38: 1.17053733 | I38: 1.152103672 | J38: 1.130621856 | K38: 1.111722573 | L38: 1.115067776 | M38: 1.093203702
B39: SK | E39: 1.244869833 | F39: 1.246115948 | G39: 1.249865545 | H39: 1.256146276 | I39: 1.238803034 | J39: 1.208588326 | K39: 1.175669578 | L39: 1.152617233 | M39: 1.121222989
B40: FI | C40: =1/0.9681*F40 -> 1.172766824 | D40: =1/0.9896*F40 -> 1.14728735 | E40: 1.148979829 | F40: 1.135355562 | G40: 1.137630823 | H40: 1.13309843 | I40: 1.124105585 | J40: 1.11077627 | K40: 1.098690672 | L40: 1.094313419 | M40: 1.071805503
B41: Sweden | E41: 1.205004168 | F41: 1.20259897 | G41: 1.194239295 | H41: 1.181245594 | I41: 1.159220406 | J41: 1.136490594 | K41: 1.117493209 | L41: 1.109725133 | M41: 1.080550276
C42: Source: Eurostat

Sheet Key (hidden)
B2: Key
B4: Electricity | C4: Gas | D4: Hydrogen
B5: Overhead line | C5: Compression station | D5: Hydrogen-ready pipeline 40"
B6: Underground cable | C6: Advanced metering equipment
B7: Submarine cable
B8: Offshore transmission cable
B9: AC substation
B10: Offshore AC substation
B11: Transformer
B12: HVDC converter
B13: SSSC
B14: Synchronous condensers
B16: Overhead line | C16: Underground cable | D16: AC substation | E16: Transformer | F16: =C5 -> Compression station | G16: Submarine cable
B17: =UICs!D5 -> 110-150 kV 2 circuits | C17: =UICs!D11 -> 110 - 150 kV 1 circuit | D17: =UICs!D20 -> New/AIS/maximum 5 bays | E17: =UICs!D29 -> 150/60 | F17: <1 MW | G17: AC
B18: =UICs!D6 -> 220 kV 1 circuit | C18: =UICs!D12 -> 110 - 150 kV 2 circuits | D18: =UICs!D21 -> New/GIS/maximum 5 bays | E18: =UICs!D30 -> 220/66 | F18: 10-50 MW | G18: DC
B19: =UICs!D7 -> 220 kV 2 circuits | C19: =UICs!D13 -> 220 - 225 kV 1 circuit | D19: =UICs!D22 -> Refurbishment or Upgrade/AIS/maximum 5 bays | E19: =UICs!D31 -> 400/110
B20: =UICs!D8 -> 330 kV 2 circuits | C20: =UICs!D14 -> 220 - 225 kV 2 circuits | D20: =UICs!D23 -> Refurbishment or Upgrade/GIS/maximum 5 bays | E20: =UICs!D32 -> 400/220
B21: =UICs!D9 -> 400 kV 1 circuit | C21: =UICs!D15 -> 300 - 500 kV 1 circuit | D21: =UICs!D24 -> New/AIS/from 6 to 9 bays
B22: =UICs!D10 -> 400 kV 2 circuits | D22: =UICs!D25 -> New/GIS/from 6 to 9 bays
D23: =UICs!D26 -> Refurbishment or Upgrade/AIS/from 6 to 9 bays
D24: ="New/" & UICs!D$27 -> New/from 10 to 60 bays
D25: ="Refurbishment or Upgrade/" & UICs!D$27 -> Refurbishment or Upgrade/from 10 to 60 bays

Sheet UICs (hidden)
B2: Unit investment cost indicators
B4: Infrastructure category | C4: Asset category | D4: Subcategory | E4: Average | F4: Median | G4: Q1 | H4: Q3
B5: Electricity | C5: Overhead line | D5: 110-150 kV 2 circuits | E5: 0.3249919699 | F5: 0.2597182025 | G5: 0.2243697556 | H5: 0.3929773006
B6: Electricity | C6: Overhead line | D6: 220 kV 1 circuit | E6: 0.4118868188 | F6: 0.3621803249 | G6: 0.3033005425 | H6: 0.5429061915
B7: Electricity | C7: Overhead line | D7: 220 kV 2 circuits | E7: 0.5304997983 | F7: 0.5028434155 | G7: 0.4416927001 | H7: 0.6731416421
B8: Electricity | C8: Overhead line | D8: 330 kV 2 circuits | E8: 0.5736004935 | F8: 0.5304132626 | G8: 0.5218601599 | H8: 0.572702143
B9: Electricity | C9: Overhead line | D9: 400 kV 1 circuit | E9: 0.4652869059 | F9: 0.3968563784 | G9: 0.2977435295 | H9: 0.605805722
B10: Electricity | C10: Overhead line | D10: 400 kV 2 circuits | E10: 1.260970376 | F10: 1.050043569 | G10: 0.5331996079 | H10: 1.634892164
B11: Electricity | C11: Underground cable | D11: 110 - 150 kV 1 circuit | E11: 0.830658007 | F11: 0.550600525 | G11: 0.4252618027 | H11: 0.642880486
B12: Electricity | C12: Underground cable | D12: 110 - 150 kV 2 circuits | E12: 2.232069886 | F12: 1.679545187 | G12: 0.8468645912 | H12: 3.064750482
B13: Electricity | C13: Underground cable | D13: 220 - 225 kV 1 circuit | E13: 1.778355099 | F13: 1.910027693 | G13: 1.233732062 | H13: 2.108009621
B14: Electricity | C14: Underground cable | D14: 220 - 225 kV 2 circuits | E14: 4.401542428 | F14: 4.386776195 | G14: 4.232120557 | H14: 4.556198066
B15: Electricity | C15: Underground cable | D15: 300 - 500 kV 1 circuit | E15: 1.30895215 | F15: 1.131035426 | G15: 1.045741169 | H15: 1.394246408
B16: Electricity | C16: Submarine cable | E16: 1.647296567 | F16: 1.26309057 | G16: 0.9121004215 | H16: 2.477986643
B17: Electricity | C17: Submarine cable | D17: AC | E17: 2.006533263 | F17: 2.467554357 | G17: 1.20283757 | H17: 2.526833746
B18: Electricity | C18: Submarine cable | D18: DC | E18: 1.108441523 | F18: 1.085783302 | G18: 0.9033757866 | H18: 1.257822156
B19: Electricity | C19: Offshore transmission cable | E19: 3.289317654 | F19: 3.002705714 | G19: 2.761303019 | H19: 4.338720143
B20: Electricity | C20: AC substation | D20: New/AIS/maximum 5 bays | E20: 11.71267822 | F20: 6.692165455 | G20: 3.588859707 | H20: 16.90691976
B21: Electricity | C21: AC substation | D21: New/GIS/maximum 5 bays | E21: 13.61880973 | F21: 9.401506533 | G21: 5.401601228 | H21: 15.98643906
B22: Electricity | C22: AC substation | D22: Refurbishment or Upgrade/AIS/maximum 5 bays | E22: 3.401124697 | F22: 2.789344467 | G22: 2.116075096 | H22: 4.300494227
B23: Electricity | C23: AC substation | D23: Refurbishment or Upgrade/GIS/maximum 5 bays | E23: 4.447600579 | F23: 2.405164938 | G23: 1.99095397 | H23: 6.396786905
B24: Electricity | C24: AC substation | D24: New/AIS/from 6 to 9 bays | E24: 12.1412845 | F24: 9.943449103 | G24: 8.179078781 | H24: 16.68096652
B25: Electricity | C25: AC substation | D25: New/GIS/from 6 to 9 bays | E25: 9.820773984 | F25: 9.553580742 | G25: 7.815434682 | H25: 11.52967768
B26: Electricity | C26: AC substation | D26: Refurbishment or Upgrade/AIS/from 6 to 9 bays | E26: 15.37788157 | F26: 11.80332114 | G26: 6.807332286 | H26: 23.43622465
B27: Electricity | C27: AC substation | D27: from 10 to 60 bays | E27: 29.84534883 | F27: 23.27019761 | G27: 19.26119274 | H27: 40.33329831
B28: Electricity | C28: Offshore AC substation | E28: 133.0695921 | F28: 126.7306054 | G28: 104.7278913 | H28: 154.8251543
B29: Electricity | C29: Transformer | D29: 150/60 | E29: 1.212256384 | F29: 1.097683372 | G29: 1.097683372 | H29: 1.26954289
B30: Electricity | C30: Transformer | D30: 220/66 | E30: 1.536087915 | F30: 1.59233273 | G30: 1.339940373 | H30: 1.719934288
B31: Electricity | C31: Transformer | D31: 400/110 | E31: 4.355614696 | F31: 4.345274759 | G31: 3.633137798 | H31: 4.728917493
B32: Electricity | C32: Transformer | D32: 400/220 | E32: 4.631216301 | F32: 3.847492698 | G32: 2.944267644 | H32: 6.815760398
B33: Electricity | C33: HVDC converter | E33: 0.1503312828 | F33: 0.147380106 | G33: 0.1271928185 | H33: 0.192722615
B34: Electricity | C34: SSSC | E34: 0.0299887055 | F34: 0.02495422385 | G34: 0.01831874731 | H34: 0.04000700514
B35: Electricity | C35: Synchronous condensers | E35: 46.59850009 | F35: 50.68203033 | G35: 36.46253733 | H35: 51.04079174
B36: Gas | C36: Compression station | D36: =Key!F17 -> <1 MW | E36: 14.51148807 | F36: 16.04593338 | G36: 10.8682661 | H36: 18.27070994
B37: Gas | C37: Compression station | D37: 10-50 MW | E37: 4.273701523 | F37: 4.283907542 | G37: 4.252136652 | H37: 4.300369404
B38: Gas | C38: Advanced metering equipment | E38: 0.1256466734 | F38: 0.1233412298 | G38: 0.1135430948 | H38: 0.1365975302
B39: Hydrogen | C39: Hydrogen-ready pipeline 40" | E39: 2.271347344 | F39: 2.243541552 | G39: 2.215635752 | H39: 2.299253143
